Cogmind - Beta 15 @@@ ROGUE MODE // 2025.05.10 @ 18:56:09 Player: Ciaphas Result: Destroyed by C-17 Slicer with Blade Saw Performance ------------- Evolutions (2) 1000 Regions Visited (7) 1400 Robots Destroyed (20) 100 Value Destroyed (488) 488 Prototype IDs (27) 540 Alien Tech Used (0) 0 Bonus (385) 385 TOTAL SCORE: 3913 Bonus ------- Follower Combat Kills 85 Aligned with FarCom 300 Cogmind --------- Core Integrity 0/550 Matter 260/300 Energy 100/100 System Corruption 0% Temperature Cool (0) Movement Core (50) Location -8/Materials Parts ------- > --- POWER (1) -------- (None) > --- PROPULSION (3) --- (None) > --- UTILITY (5) ------ (None) > --- WEAPON (2) ------- (None) > --- INVENTORY (5) ---- Light Nuclear Core Light Nuclear Core Faulty Improved VTOL Module Improved VTOL Module Layered Light Armor Plating Peak State ------------ > --- POWER ------------ Micro Nuclear Core > --- PROPULSION ------- Improved VTOL Module Improved VTOL Module Improved VTOL Module > --- UTILITY ---------- Small Storage Unit Weight Redist. System Advanced Visual Processing Unit Improved Power Shielding Hacking Suite > --- WEAPON ----------- Heavy Hammer > --- INVENTORY -------- Light Nuclear Core Light Nuclear Core Improved VTOL Module Improved VTOL Module Improved VTOL Module High-capacity Battery Light Armor Plating Layered Light Armor Plating [Rating: 32] Favorites ----------- Power Ion Engine Engine Ion Engine Power Core Light Nuclear Core Propulsion Light Treads Treads Light Treads Leg Aluminum Leg Hover Unit Airjet Flight Unit Improved VTOL Module Utility Improved Terrain Scanner Device Improved Terrain Scanner Storage Small Storage Unit Processor Advanced Visual Processing Unit Hackware Hacking Suite Protection Improved Power Shielding Weapon Grenade Launcher Energy Gun Small Laser Energy Cannon Particle Cannon Ballistic Gun Light Assault Rifle Launcher Grenade Launcher Special Weapon Mining Laser Impact Weapon Heavy Hammer Build | -11 -10 -10 -9 -9 -9 -8 -8 ------- Run | Yrd Mat Min Mat Min Exi Min Mat Slots Evolved 4 | . . . 2 . . . 2 Power . | . . . . . . . . Propulsion 1 | . . . 1 . . . . Utility 3 | . . . 1 . . . 2 Weapon . | . . . . . . . . Parts Attached 44 | 5 2 3 9 . . . 25 Power 9 | . 1 1 2 . . . 5 Engine 5 | . 1 . 1 . . . 3 Core 4 | . . 1 1 . . . 2 Reactor . | . . . . . . . . Propulsion 13 | 2 . . 3 . . . 8 Treads 3 | 2 . . . . . . 1 Leg 1 | . . . . . . . 1 Wheel . | . . . . . . . . Hover 2 | . . . . . . . 2 Flight 7 | . . . 3 . . . 4 Utility 14 | 2 . 1 2 . . . 9 Device 7 | 2 . . 1 . . . 4 Storage 4 | . . 1 1 . . . 2 Processor 1 | . . . . . . . 1 Hackware 1 | . . . . . . . 1 Protection 1 | . . . . . . . 1 Artifact . | . . . . . . . . Weapon 8 | 1 1 1 2 . . . 3 Energy Gun 4 | 1 . . 1 . . . 2 Energy Cannon 1 | . . . . . . . 1 Ballistic Gun . | . . . . . . . . Ballistic Cannon . | . . . . . . . . Launcher 1 | . 1 . . . . . . Special Weapon 1 | . . 1 . . . . . Impact Weapon 1 | . . . 1 . . . . Slashing Weapon . | . . . . . . . . Piercing Weapon . | . . . . . . . . Special Melee Weapon . | . . . . . . . . Unidentified Prototypes 2 | . . . 1 . . . 1 Parts Lost 10 | . . . 6 . . . 4 Power 3 | . . . 2 . . . 1 Propulsion 6 | . . . 3 . . . 3 Utility . | . . . . . . . . Weapon 1 | . . . 1 . . . . Highest Loss Streak 4 | . . . 4 . . . 3 To Critical Strikes . | . . . . . . . . Average Backups 4 | 1 4 5 5 5 4 4 5 Power . | 1 1 1 . . . . . Propulsion . | . . . . . . . 1 Utility 3 | . 2 4 4 4 3 3 1 Weapon . | . . . . 1 1 1 1 Tool/Special . | . . . . . . . . Unused Backups 22 | 6 4 3 . . . . 9 Power 2 | . . 1 . . . . 1 Propulsion 7 | 4 . . . . . . 3 Utility 8 | . 2 2 . . . . 4 Weapon 5 | 2 2 . . . . . 1 Tool/Special . | . . . . . . . . Average Slot Usage (%) 70 | . 94 91 78 . 4 11 58 Engine 6 | . 14 10 . . . . 2 Core 3 | . . 3 8 . . . 4 Treads 14 | . 28 28 8 . . . . Flight 5 | . . . 15 . . . 14 Device 13 | . 14 14 22 . 4 11 11 Storage 9 | . 14 14 8 . . . 6 Energy Gun 5 | . 17 . 4 . . . 4 Launcher 5 | . 5 14 3 . . . . Special Weapon 1 | . . 6 1 . . . . Impact Weapon 1 | . . . 5 . . . 3 Peak Build Rating 32 | 9 9 11 15 . 1 2 32 Average Rating 10 | 7 8 8 11 . . 1 19 On Entrance 4 | 6 9 8 11 . . 1 2 Naked Turns 118 | . . . 6 36 59 . 17 Heaviest Build 33 | 11 14 30 33 . 1 1 20 Greatest Support 40 | 40 40 40 40 3 3 3 21 Greatest Overweight (x) 9 | . . . 9 . . . 6 Average Overweight (x) . | . . . . . . . . Largest Inventory Capacity 15 | 8 8 15 15 5 5 5 8 Average Capacity 9 | 8 8 14 10 5 5 5 6 Most Carried 8 | 5 7 7 6 5 5 5 8 Average Carried 4 | 1 4 5 5 5 4 4 5 Final Capacity 15 | 8 8 15 5 5 5 5 5 Final Carried 6 | 2 6 6 5 5 4 5 5 Class Distribution -------------------- 76% | Mutant 13% | Sprinter 9% | Scavenger-Mutant Dominant Class ---------------- Mutant | -10/Materials Mutant | -10/Mines Scavenger-Mutant | -9/Materials Mutant | -9/Mines Mutant | -9/Exiles Mutant | -8/Mines Sprinter | -8/Materials Resources | -11 -10 -10 -9 -9 -9 -8 -8 ----------- Run | Yrd Mat Min Mat Min Exi Min Mat Matter Collected 816 | 235 45 190 90 10 . 10 236 Remotely . | . . . . . . . . Salvage Created 740 | 73 126 . 49 . . . 492 Parts 43 | 7 8 . 5 . . . 23 Haulers Intercepted 2 | . . . . . . . 2 Recyclers Shooed 1 | 1 . . . . . . . Parts Field Recycled . | . . . . . . . . Retrieved Matter . | . . . . . . . . Parts Self-Destructed . | . . . . . . . . Prevented . | . . . . . . . . Kills | -11 -10 -10 -9 -9 -9 -8 -8 ------- Run | Yrd Mat Min Mat Min Exi Min Mat Combat Hostiles Destroyed 12 | . 4 . 3 . . . 5 Guns 3 | . . . 2 . . . 1 Cannons 3 | . . . . . . . 3 AOE 5 | . 4 . 1 . . . . Classes Destroyed 8 | 2 3 . 1 . . . 2 Tunneler 1 | 1 . . . . . . . Hauler 2 | . . . . . . . 2 Recycler 3 | 1 . . . . . . 2 Operator 1 | . . . 1 . . . . Watcher 1 | . 1 . . . . . . Swarmer 4 | . 1 . 3 . . . . Grunt 5 | . 3 . . . . . 2 Sentry 3 | . . . . . . . 3 Best Kill Streak 3 | 1 3 . 2 . . . 3 Combat Bots Only 3 | . 3 . 2 . . . 2 Max Kills in Single Turn 2 | 1 2 . 1 . . . 1 Gunslinging . | . . . . . . . . Exploded 2 | . 2 . 1 . . . . Melee . | . . . . . . . . Uniques/NPCs Destroyed . | . . . . . . . . Combat | -11 -10 -10 -9 -9 -9 -8 -8 -------- Run | Yrd Mat Min Mat Min Exi Min Mat Hostile Shots Fired 238 | . 37 . 94 8 . 9 90 Missed 90 | . 14 . 37 4 . 6 29 Hits 148 | . 23 . 57 4 . 3 61 Melee 18 | . . . . . . . 18 Projectile 130 | . 23 . 57 4 . 3 43 AOE 2 | . . . . . . . 2 Critical Strikes 10 | . 2 . 1 . . . 7 Actively Blocked 1 | . . . . . . . 1 Damage Taken 2298 | . 468 . 651 36 . 26 1117 Core 939 | . 61 . 265 36 . 23 554 Absorbed by Shields . | . . . . . . . . Redirected to Shielding 29 | . . . . . . . 29 Core Remaining (%) 64 | 100 . 75 . . . 19 . Volleys Fired 58 | 4 14 3 10 . . . 27 Largest 2 | 2 2 1 1 . . . 2 Hottest 124 | 80 80 100 56 . . . 124 Shots Fired 92 | 8 21 3 10 . . . 50 Gun 66 | 8 14 . 9 . . . 35 Cannon 15 | . . . . . . . 15 Launcher 8 | . 7 . 1 . . . . Special 3 | . . 3 . . . . . Kinetic . | . . . . . . . . Thermal 84 | 8 14 3 9 . . . 50 Explosive 8 | . 7 . 1 . . . . Electromagnetic . | . . . . . . . . Robot Hit Streak 13 | 4 5 . 2 . . . 13 Robot Miss Streak 3 | 1 1 . 3 . . . 3 Penetration Max . | . . . . . . . . Secondary Targets 1 | . . . . . . . 1 Max Gunslinging Chain 1 | . . . . . . . 1 Shots Hit Robots 63 | 6 14 . 4 . . . 39 Core Hits 28 | 3 7 . 4 . . . 14 Critical Kills . | . . . . . . . . Critical Parts Destroyed . | . . . . . . . . Critical Strikes 2 | . . . . . . . 2 Burn 2 | . . . . . . . 2 Melee Attacks 18 | . . . 4 . . . 14 Impact 18 | . . . 4 . . . 14 Slashing . | . . . . . . . . Piercing . | . . . . . . . . Sneak Attacks 2 | . . . 1 . . . 1 Combat Hostiles . | . . . . . . . . Follow-up Attacks . | . . . . . . . . Damage Inflicted 1439 | 65 370 . 281 . . 10 713 Guns 614 | 65 110 . 52 . . . 387 Cannons 247 | . . . . . . . 247 Explosions 390 | . 260 . 130 . . . . Melee 178 | . . . 99 . . . 79 Ramming 10 | . . . . . . 10 . Kinetic . | . . . . . . . . Thermal 861 | 65 110 . 52 . . . 634 Explosive 390 | . 260 . 130 . . . . Electromagnetic . | . . . . . . . . Impact 178 | . . . 99 . . . 79 Slashing . | . . . . . . . . Piercing . | . . . . . . . . Highest Corruption . | . . . . . . . . Average Corruption . | . . . . . . . . Corruption Purged . | . . . . . . . . Corruption Blocked . | . . . . . . . . Overload Shots . | . . . . . . . . Overflow Damage . | . . . . . . . . Projectiles . | . . . . . . . . Explosions . | . . . . . . . . Melee . | . . . . . . . . Knockbacks 1 | . . . . . . 1 . Impact 1 | . . . . . . 1 . Kinetic . | . . . . . . . . Secondary . | . . . . . . . . Self-Inflicted Damage 179 | . 134 . 40 . . 5 . Shots 6 | . 5 . 1 . . . . Rammed 2 | . . . . . . 2 . Targets Rammed 2 | . . . . . . 2 . Kicked . | . . . . . . . . Crushed . | . . . . . . . . Highest Temperature 207 | 54 207 60 43 . . . 111 Average Temperature 54 | 25 112 30 16 . . . 31 Received Heat Transfer 600 | . 228 . 138 . . . 234 Effects 1 | . 1 . . . . . . Energy Bleed 1 | . 1 . . . . . . Siege Activations . | . . . . . . . . Martial Activations . | . . . . . . . . Shielding Activations . | . . . . . . . . Robots Disrupted . | . . . . . . . . Combat Hostiles . | . . . . . . . . Robots Corrupted . | . . . . . . . . Combat Hostiles . | . . . . . . . . Parts Fried . | . . . . . . . . Impact Corruptions . | . . . . . . . . Robots Melted 1 | . . . . . . . 1 Combat Hostiles 1 | . . . . . . . 1 Parts Melted 5 | 1 . . . . . . 4 Heat Transferred 2102 | 150 250 . 111 . . . 1591 Parts Sabotaged . | . . . . . . . . Parts Stolen . | . . . . . . . . Parts Stripped . | . . . . . . . . Power Chain Reactions . | . . . . . . . . Alert | -11 -10 -10 -9 -9 -9 -8 -8 ------- Run | Yrd Mat Min Mat Min Exi Min Mat Maximum Alert Level . | . . . . . . . . Low Security (%) 100 | 100 100 100 100 100 . 100 100 Level 1 . | . . . . . . . . Level 2 . | . . . . . . . . Level 3 . | . . . . . . . . Level 4 . | . . . . . . . . Level 5 . | . . . . . . . . High Security . | . . . . . . . . Max Security . | . . . . . . . . Peak Influence 177 | 5 108 36 113 36 . 65 177 Initial 36 | . . 34 . 36 . . 25 Average 31 | . 35 7 35 31 . 8 63 Influence Increases 993 | 10 198 64 248 . . 75 398 Destroy 0b10 Robot/C 300 | . 80 40 80 . . . 100 Destroy 0b10 Robot/NC 40 | 10 5 . 5 . . . 20 Destroy Leader 76 | . 22 10 10 . . . 34 Allied During Kill 13 | . . 11 2 . . . . Successful Hack 45 | . 13 . 6 . . . 26 Disable Machine 45 | . . . 15 . . . 30 Destroy Structure 54 | . 33 3 10 . . . 8 Partial Spotted 75 | . . . 15 . . . 60 Lose Combat Pursuer 345 | . 45 . 105 . . 75 120 Influence Decreases 816 | 10 108 154 155 67 26 10 286 Entered New Map 179 | . . 56 . 57 26 . 40 Time Decay 515 | 10 108 78 93 10 . 10 206 Lost Part 80 | . . . 40 . . . 40 Lost Ally 42 | . . 20 22 . . . . Squads Dispatched 3 | . . . 2 . . . 1 Investigation . | . . . . . . . . Extermination . | . . . . . . . . Reinforcement 3 | . . . 2 . . . 1 Assault . | . . . . . . . . Garrison . | . . . . . . . . Intercept . | . . . . . . . . Searches Triggered . | . . . . . . . . Construction Impeded . | . . . . . . . . Haulers Reinforced . | . . . . . . . . Active Scanning Responses . | . . . . . . . . Cargo Convoy Interrupts . | . . . . . . . . Stealth | -11 -10 -10 -9 -9 -9 -8 -8 --------- Run | Yrd Mat Min Mat Min Exi Min Mat Distress Signals 5 | . 1 . 2 . . . 2 Communications Jammed . | . . . . . . . . Distress Signals . | . . . . . . . . Times Spotted 80 | . 10 2 24 14 . 5 25 Peak Tracking Total 22 | . 4 2 11 22 . 4 9 Tactical Retreats 12 | . 2 . 3 1 . 2 4 Traps | -11 -10 -10 -9 -9 -9 -8 -8 ------- Run | Yrd Mat Min Mat Min Exi Min Mat Traps Triggered . | . . . . . . . . Indirectly . | . . . . . . . . Trap Hack Attempts . | . . . . . . . . Triggered . | . . . . . . . . Disarmed 6 | . . . 6 . . . . Reprogrammed . | . . . . . . . . Reused . | . . . . . . . . Traps Extracted . | . . . . . . . . Installed . | . . . . . . . . Triggered . | . . . . . . . . Machines | -11 -10 -10 -9 -9 -9 -8 -8 ---------- Run | Yrd Mat Min Mat Min Exi Min Mat Machines Disabled 3 | . . . 1 . . . 2 Max in Single Turn 1 | . . . 1 . . . 1 Garrison Access 1 | . . . . . . . 1 Machines Repaired . | . . . . . . . . Machines Dismantled . | . . . . . . . . Machines Sabotaged . | . . . . . . . . Overloaded Fab Kills . | . . . . . . . . Hacking | -11 -10 -10 -9 -9 -9 -8 -8 --------- Run | Yrd Mat Min Mat Min Exi Min Mat Machines Accessed 13 | . 3 . 2 . 1 . 7 Terminals 8 | . 3 . 2 . . . 3 Fabricators . | . . . . . . . . Repair Stations . | . . . . . . . . Recycling Units 2 | . . . . . . . 2 Scanalyzers 1 | . . . . . . . 1 Garrison Access 1 | . . . . . . . 1 Total Hacks 41 | . 8 . 9 . 1 . 23 Successful 26 | . 3 . 4 . 1 . 18 Failed 15 | . 5 . 5 . . . 5 Catastrophic 2 | . 1 . . . . . 1 Database Lockouts . | . . . . . . . . Manual 11 | . 4 . 2 . 1 . 4 Terminals 30 | . 8 . 9 . . . 13 Fabricators . | . . . . . . . . Repair Stations . | . . . . . . . . Recycling Units 6 | . . . . . . . 6 Scanalyzers 3 | . . . . . . . 3 Garrison Access 1 | . . . . . . . 1 Terminal Hacks 15 | . 2 . 3 . 1 . 9 Prototype ID Bank 1 | . . . . . . . 1 Branch Access Points 1 | . 1 . . . . . . Emergency Access Points 1 | . . . . . . . 1 Terminal Index 1 | . . . . . . . 1 Alert Level 2 | . . . . . . . 2 Disarm Traps 1 | . . . 1 . . . . Maintenance Status 1 | . . . . . . . 1 Investigation Status 1 | . . . 1 . . . . Hauler Manifests 4 | . 1 . 1 . . . 2 Zone Layout 1 | . . . . . . . 1 Proto ID Catalog 1 | . . . . . 1 . . Fabricator Hacks . | . . . . . . . . Repair Station Hacks . | . . . . . . . . Recycling Unit Hacks 3 | . . . . . . . 3 Report Inventory 1 | . . . . . . . 1 Retrieve Components 2 | . . . . . . . 2 Scanalyzer 3 | . . . . . . . 3 Insert Component 1 | . . . . . . . 1 Analyze 2 | . . . . . . . 2 Garrison Access Hacks 1 | . . . . . . . 1 Seal Access 1 | . . . . . . . 1 Unauthorized Hacks 4 | . 1 . 1 . . . 2 Terminals 4 | . 1 . 1 . . . 2 Assimilate 1 | . . . . . . . 1 Botnet 3 | . 1 . 1 . . . 1 Fabricators . | . . . . . . . . Repair Stations . | . . . . . . . . Recycling Units . | . . . . . . . . Scanalyzers . | . . . . . . . . Garrison Access . | . . . . . . . . Data Cores Recovered 1 | . . . 1 . . . . Used 1 | . . . 1 . . . . Hacking Detections 8 | . 3 . 1 . . . 4 Full Trace Events . | . . . . . . . . Feedback Events . | . . . . . . . . Feedback Blocked . | . . . . . . . . Robot Schematics Acquired . | . . . . . . . . Robots Built . | . . . . . . . . Authchips . | . . . . . . . . Time . | . . . . . . . . Total Robot Build Rating . | . . . . . . . . Part Schematics Acquired 1 | . . . . . . . 1 Parts Built . | . . . . . . . . Authchips . | . . . . . . . . Time . | . . . . . . . . Total Part Build Rating . | . . . . . . . . Parts Repaired . | . . . . . . . . Time . | . . . . . . . . Parts Recycled . | . . . . . . . . Recycled Matter . | . . . . . . . . Retrieved Matter . | . . . . . . . . Retrieved Components 7 | . . . . . . . 7 Parts Scanalyzed 1 | . . . . . . . 1 Part Schematics Acquired 1 | . . . . . . . 1 Parts Damaged . | . . . . . . . . Bothacking | -11 -10 -10 -9 -9 -9 -8 -8 ------------ Run | Yrd Mat Min Mat Min Exi Min Mat Used RIF Installer . | . . . . . . . . Robots Hacked . | . . . . . . . . Non-combat . | . . . . . . . . Combat . | . . . . . . . . Robot Hacks Applied . | . . . . . . . . Relay Couplers Released . | . . . . . . . . Fabnet Peak Effective % . | . . . . . . . . Robots Rewired . | . . . . . . . . Allies Hacked . | . . . . . . . . Hacks Repelled . | . . . . . . . . Allies | -11 -10 -10 -9 -9 -9 -8 -8 -------- Run | Yrd Mat Min Mat Min Exi Min Mat Total Allies 4 | . . 4 . . . . . Largest Group 4 | . . 4 3 . . . . Highest-Rated Group 71 | . . 71 55 . . . . Highest-Rated Ally 31 | . . 31 31 . . . . Total Orders . | . . . . . . . . Ally Attacks 31 | . . 24 7 . . . . Total Damage 294 | . . 222 72 . . . . Kills 3 | . . 2 1 . . . . Allies Corrupted . | . . . . . . . . Allies Melted . | . . . . . . . . Intel | -11 -10 -10 -9 -9 -9 -8 -8 ------- Run | Yrd Mat Min Mat Min Exi Min Mat Active Infowar (turns) 1475 | 32 412 494 263 . 50 97 127 Optics 127 | . . . . . . . 127 Sensors 263 | . . . 263 . . . . Terrain 1196 | 27 412 494 263 . . . . Seismic 152 | 5 . . . . 50 97 . Robot Analysis Total . | . . . . . . . . Derelict Logs Recovered 1 | . . 1 . . . . . Drone Launches . | . . . . . . . . Drone Recoveries . | . . . . . . . . Exploration | -11 -10 -10 -9 -9 -9 -8 -8 ------------- Run | Yrd Mat Min Mat Min Exi Min Mat Turns Passed 1958 | 81 412 494 269 36 109 104 453 Spaces Moved 2034 | 37 224 286 342 72 215 201 657 Core 554 | . . . 16 72 215 201 50 Treads 606 | 37 224 286 55 . . . 4 Legs 10 | . . . . . . . 10 Wheels . | . . . . . . . . Hover 64 | . . . . . . . 64 Flight 800 | . . . 271 . . . 529 Fastest Speed 29 | 160 160 160 34 50 50 50 29 Average Speed 78 | 160 160 160 63 50 50 50 40 Slowest Speed 520 | 160 160 160 520 50 50 50 350 Overloaded Moves . | . . . . . . . . Propulsion Burnouts . | . . . . . . . . Robots Hopped . | . . . . . . . . Potential Cave-ins 3 | . . . . . . . 3 Cave-ins Triggered 1 | . . . . . . . 1 Exploration Rate (%) 40 | 4 51 54 32 23 59 45 56 Regions Visited 7 Branch Regions 4 Pre-discovered Areas . | . . . . . . . . Known Exits Taken 1 | . 1 . . . . . . Unknown Exits Taken 6 | 1 . 1 1 1 1 1 . Scrap Searched 4 | . . 2 . 1 . 1 . Spaces Dug 15 | . . 3 2 . . . 10 Terrain Destroyed 54 | . 32 3 9 . . . 10 Melee 12 | . . . 2 . . . 10 Projectile 3 | . . 3 . . . . . AOE 39 | . 32 . 7 . . . . Terrain Rammed . | . . . . . . . . Walls Destroyed . | . . . . . . . . Machines Disabled . | . . . . . . . . Actions | -11 -10 -10 -9 -9 -9 -8 -8 --------- Run | Yrd Mat Min Mat Min Exi Min Mat Total 2257 | 51 258 314 376 71 215 203 769 Wait 40 | . 8 19 . . . . 13 Move 2026 | 36 223 285 341 71 214 200 656 Hop . | . . . . . . . . Pick Up 21 | . 7 2 1 . . 1 10 Fast Attach 27 | 2 . . 7 . . . 18 Attach 13 | . . 1 4 . 1 . 7 Detach 9 | 1 . . 3 . . . 5 Swap 12 | 3 2 2 1 . . . 4 Drop 30 | 5 4 2 5 . . . 14 Fire 58 | 4 14 3 10 . . . 27 Melee 18 | . . . 4 . . . 14 Ram 2 | . . . . . . 2 . Kick . | . . . . . . . . Crush . | . . . . . . . . Escape Stasis 1 | . . . . . . . 1 Rewire . | . . . . . . . . Trap . | . . . . . . . . Miscellaneous . | . . . . . . . . Route ------- -11/Scrapyard -10/Materials (discovered 2 exits: *Mat / *Min) -10/Mines (discovered 2 exits: *Mat x2) -9/Materials (discovered 2 exits: [*Min] / [*Sto]) -9/Mines -9/Exiles -8/Mines -8/Materials (discovered 1 exit: [*Fac]) History --------- Turn | Location | Event 18 | -11/Scrapyard | Discovered new exit (range 3) 82 | -11/Scrapyard | Entered Materials 280 | -10/Materials | Discovered new exit (range 14) 314 | -10/Materials | Build established: Mutant 362 | -10/Materials | Discovered new exit (range 14) 421 | -10/Materials | Identified exit to Mines 494 | -10/Materials | Entered Mines 502 | -10/Mines | Assisted by bots powering up and referring to "LRC-V3" 743 | -10/Mines | Received a Mining Laser from a helpful Derelict 748 | -10/Mines | Discovered new exit (range 4) 830 | -10/Mines | Discovered new exit (range 4) 905 | -10/Mines | Learned Materials terminal intel 988 | -10/Mines | Entered Materials 988 | -9/Materials | Accompanied by 3 allies 988 | -9/Materials | Evolved 2 slots: Propulsion x1, Utility x1 989 | -9/Materials | Loaded intel: 12 terminal locations 1130 | -9/Materials | Lost 4 parts (1p2n1w) 1218 | -9/Materials | Discovered new exit (range 12) 1225 | -9/Materials | Discovered new exit (range 9) 1227 | -9/Materials | Core integrity fell below 50% 1251 | -9/Materials | Released all parts (6) 1257 | -9/Materials | Entered Mines 1267 | -9/Mines | Assembled infested the area 1291 | -9/Mines | Deemed a non-threat by the Exiles lab entrance 1291 | -9/Mines | Discovered new exit (range 5) 1293 | -9/Mines | Entered Exiles 1306 | -9/Exiles | Met 8R-AWN 1315 | -9/Exiles | Met EX-HEX 1330 | -9/Exiles | Met EX-BIN 1336 | -9/Exiles | Aligned with FarCom system 1337 | -9/Exiles | Given EX-Vault access code 1348 | -9/Exiles | Opened EX-Vault 1363 | -9/Exiles | Warned to stay clear of 0b10 Research branches 1376 | -9/Exiles | Met EX-DEC 1396 | -9/Exiles | Discovered new exit (range 11) 1402 | -9/Exiles | Entered Mines 1500 | -8/Mines | Discovered new exit (range 9) 1504 | -8/Mines | Core integrity fell below 20% 1506 | -8/Mines | Entered Materials 1506 | -8/Materials | Evolved 2 slots: Utility x2 1705 | -8/Materials | Lost 3 parts (1p2n) 1863 | -8/Materials | Discovered new exit (range 19) 1909 | -8/Materials | Core integrity fell below 50% 1932 | -8/Materials | Crushed by falling debris 1954 | -8/Materials | Core integrity fell below 20% 1955 | -8/Materials | Released all parts (7) 1959 | -8/Materials | Destroyed by C-17 Slicer with Blade Saw Last Messages --------------- 01896_ ALERT: Suspicious intruders detected, dispatching Cutter reinforcements to area. 01900_ Penetrated by Slug. 01904_ C-17 Slicer knocked back. 01912_ Knocked back. 01912_ C-17 Slicer knocked back. 01912_ R-06 Scavenger collects Prototype Energy Gun. 01913_ U-05 Engineer lays Concrete. 01928_ Adv. Visual Processing Unit severed. 01932_ The unstable cave ceiling collapses. 01932_ Crushed by falling debris. 01941_ Terminal disabled. 01947_ Imp. VTOL Module severed. 01955_ Released Hacking Suite. 01955_ Released Hvy. Hammer. 01955_ Released Imp. VTOL Module. 01955_ Released Sml. Storage Unit. 01955_ Released Weight Redist. System. 01955_ Released Imp. Power Shielding. 01955_ Released Mic. Nuclear Core. Map ----- +----------------------------------------------------+ | ??????????????????#" """ #?????? ?????? | | ??????????????????#T """ #?????? ???? | | ??????????????????#" """ #?????????? | | ??????????????????# #?????????######### | | ??????????????????#######"###?????????????????# | | ????????????????????????## ##?????????????????# | | ?????????????????????????## ##????????????????# | | ??????????#+?????????????###"#????????????????# | | ????????? ############"T ###??????????????# | | ????????? #??????????????# | | ????????? ! #??????????????# | | ????????? Y #??????????????# | | ?????????? ####### !! #### #???????# | | ????????????????????# ]] ! ?????? | | ????????????????????# ]] ! ?????? | | ????????????????????# ?????? | | ????????????????????# = ########???????? | | ????????????????????# #### #?????????????????? | | ????????????????????# #??? #?????????????????? | | ????????????????######+####? #?????????????????? | | ????????????????# ! #? #?????????????????? | | ????????????????# """ #? #?????????????????? | | ????????????????# """"" #? #?????????????????? | | ????????????????# """""!#? #?????????????????? | | ????????????????# """""!#? ???????????????????? | | ????????????w???# """c@#??????????????????????? | | ????????????????# s !cc#??????????????????????? | | ????????????????# =*=#??????????????????????? | | ????????????????###########??????????????????????? | | ?????????????????????????????????????????????????? | | ?????????????????????????????????????????????????? | | ?????????????????????????????????????????????????? | | ?????????????????????????????????????????????????? | | ?????????????????????????????????????????????????? | | ?????????????????????????????????????????????????? | | ?????????????????????????????????????????????????? | | ?????????????????????????????????????????????????? | | ?????????????????????????????????????????????????? | | ?????????????????????????????????????????????????? | | ?????????????????????????????Y???????????????????? | | ?????????????????????????????????????????????????? | | ?????????????????????????????????????????????????? | | ?????????????????????????????????????????????????? | | ?????????????????????????????????????????????????? | | ?????????????????????????????????????????????????? | | ?????????????????????????????????????????????????? | | ?????????????????????????????????????????????????? | | ?????????????????????????????????????????????????? | | ?????????????????????????????????????????????????? | | ?????????????????????????????????????????????????? | +----------------------------------------------------+ Best States ------------- Heat Dissipation 59 Energy Generation 15 Energy Capacity 515 Matter Stores 300 Matter Capacity 300 Sight Range 20 Robot Scan Range 14 Terrain Scan Range 16 Terrain Scan Density 10 Additional Mass Support 6 Base Temperature (-) 100 Power Shielding 66 Evasion (%) 64 Recoil Reduction 2 Offensive Hacking 10 Item Schematics ----------------- Imp. VTOL Module | -8/Materials | Scanalyzed Robot Schematics ------------------ None Fabricated ------------ Nothing Repaired ---------- Nothing Alien Tech Used ----------------- None Achievements -------------- Hunted Challenges ------------ None Game ------ Seed ActuatorHellfireArmor Manual? 0 Play Time 00:35:19 Cumulative 25.5 hours Start 2025.05.10 @ 18:23:26 End 2025.05.10 @ 18:56:09 Sessions 1 Manual Loads 0 Difficulty Rogue Special Mode None Game No. 48 Rogue 48 Adventurer 0 Explorer 0 Win Type - Total 0 Types 0/0/0/0/0/0/0/0/0/0 Lore% 16 Gallery% 23 Achievement% 31 Wizard Run 0 Options --------- Layout 0 ASCII 0 Keyboard 0 Movement Mouse Keybinds 0 Fullscreen 2 Font 24/Smallcaps Map View 76x50 Zoom Use 0% Tactical HUD 1 Map Filters NONE Filters NONE Steam 1 RUN: f2fecb26-246b-456b-a924-4f396a2468b0